bitfinex-derivatives/quotes_SOLF0:USTF0_20250905
["timestamp","ask_amount","ask_price","bid_price","bid_amount"]
[1757089648653,1.14,203.46,203.4,7.86]
[1757089648854,2.16577548,203.45,203.32,7.86]
[1757089649054,2.16577548,203.45,203.39,2.16577548]
[1757089649251,2.16577548,203.45,203.39,10.02577548]
[1757089650055,2.16577548,203.47,203.4,7.86]
[1757089650250,3.30577548,203.47,203.4,7.86]
[1757089650658,1.14,203.47,203.4,10.02577548]
[1757089650961,2.16577548,203.46,203.4,10.02577548]
[1757089653661,2.16577548,203.46,203.4,7.86]
[1757089654064,2.16577548,203.44,203.4,7.86]
[1757089654258,1.14,203.43,203.4,7.86]
[1757089655260,1.14,203.43,203.37,7.86]
[1757089655461,1.14,203.41,203.37,7.86]
[1757089656865,2.16577548,203.4,203.37,7.86]
[1757089657058,2.16577548,203.4,203.34,2.16577548]
[1757089657059,2.16577548,203.4,203.35,7.86]
[1757089657454,2.16577548,203.4,203.34,2.16577548]
[1757089658157,2.16577548,203.4,203.35,7.86]
[1757089658362,2.16577548,203.4,203.34,2.16577548]
[1757089659064,2.16577548,203.4,203.35,7.86]
[1757089659262,2.16577548,203.4,203.34,2.16577548]
[1757089659454,4.92,203.42,203.35,7.86]
[1757089659661,2.16577548,203.38,203.31,2.16577548]
[1757089659860,2.16577548,203.38,203.32,7.86]
[1757089660261,2.16577548,203.38,203.34,7.86]
[1757089660466,2.16577548,203.38,203.33,2.16577548]
[1757089660862,2.16577548,203.38,203.34,7.86]
[1757089661063,2.16577548,203.38,203.33,2.16577548]
[1757089661358,2.16577548,203.38,203.34,7.86]
[1757089661564,2.16577548,203.38,203.33,2.16577548]
[1757089662164,2.16577548,203.38,203.34,7.86]
[1757089662364,2.16577548,203.38,203.33,2.16577548]
[1757089662765,2.16577548,203.38,203.34,7.86]
[1757089663268,2.16577548,203.38,203.33,2.16577548]
[1757089663769,2.16577548,203.38,203.34,7.86]
[1757089663972,3.30577548,203.38,203.34,7.86]
[1757089665068,1.14,203.37,203.26,4.4274]
[1757089665261,2.16577548,203.36,203.29,7.86]
[1757089665462,2.16577548,203.34,203.29,7.86]
[1757089665871,3.30577548,203.34,203.29,7.86]
[1757089666272,3.30577548,203.34,203.28,2.16577548]
[1757089666472,3.30577548,203.34,203.29,7.86]
[1757089666872,3.30577548,203.34,203.28,2.16577548]
[1757089667667,3.30577548,203.34,203.29,7.86]
[1757089667966,3.30577548,203.34,203.28,2.16577548]
[1757089668162,2.16577548,203.32,203.26,2.16577548]
[1757089668369,2.16577548,203.32,203.26,9.64577548]
[1757089668675,2.16577548,203.32,203.26,7.48]
[1757089671676,1.16,203.33,203.26,7.48]
[1757089671876,2.16577548,203.34,203.27,7.48]
[1757089672181,2.16577548,203.34,203.29,7.48]
[1757089672382,2.16577548,203.34,203.28,2.16577548]
[1757089672574,2.16577548,203.34,203.28,7.48]
[1757089673174,4.92,203.37,203.3,7.48]
[1757089673376,10.38141246,203.39,203.3,7.48]
[1757089673570,2.16577548,203.37,203.3,7.48]
[1757089674982,10.38141246,203.39,203.3,7.48]
[1757089675276,2.16577548,203.37,203.3,7.48]
[1757089675480,4.92,203.37,203.3,7.48]
[1757089676275,10.38141246,203.37,203.3,7.48]
[1757089676676,6.08,203.36,203.3,7.48]
[1757089677881,9.46786072,203.36,203.3,7.48]
[1757089678080,9.46786072,203.36,203.24,7.48]
[1757089678281,14.92927318,203.36,203.24,7.48]
[1757089679176,9.46786072,203.36,203.24,7.48]
[1757089679477,1.16,203.35,203.24,7.48]
[1757089683987,1.16,203.35,203.26,7.48]
[1757089684577,3.38786072,203.34,203.26,7.48]
[1757089687579,4.92,203.37,203.32,7.48]
[1757089687780,5.46141246,203.41,203.34,3.38786072]
[1757089687981,10.38141246,203.43,203.35,7.48]
[1757089688182,4.92,203.43,203.35,7.48]
[1757089688583,6.62141246,203.45,203.35,7.48]
[1757089688985,4.92,203.44,203.35,7.48]
[1757089689679,6.62141246,203.45,203.35,7.48]
[1757089689881,11.54141246,203.45,203.35,7.48]
[1757089690076,6.08,203.43,203.35,7.48]
[1757089690291,4.92,203.39,203.31,7.48]
[1757089690480,4.92,203.39,203.37,0.03098625]
[1757089690679,6.08,203.38,203.37,0.03098625]
[1757089691080,8.80786072,203.38,203.28,7.48]
[1757089691289,3.38786072,203.34,203.28,7.48]
[1757089691483,4.54786072,203.34,203.28,7.48]
[1757089692389,0.03610267,203.33,203.23,7.48]
[1757089695887,4.54786072,203.31,203.23,7.48]
[1757089698990,1.17,203.27,203.17,108.71724988]
[1757089699294,1.17,203.27,203.18,8.11]
[1757089699693,0.03266864,203.24,203.18,8.11]
[1757089700888,0.03266864,203.24,203.14,10.68167]
[1757089700889,3.38786072,203.22,203.14,10.68167]
[1757089701789,0.03266864,203.24,203.17,8.11]
[1757089705393,8.30786072,203.23,203.17,8.11]
[1757089706697,0.03266864,203.24,203.17,8.11]
[1757089712594,4.53786072,203.23,203.17,8.11]
[1757089715399,9.45786072,203.23,203.17,8.11]
[1757089716699,9.45786072,203.23,203.14,2.57167]
[1757089716907,3.38786072,203.2,203.14,2.57167]
[1757089717404,0.03201753,203.19,203.14,2.57167]
[1757089717699,1.15,203.18,203.14,2.57167]
[1757089717903,1.15,203.18,203.14,10.68167]
[1757089718506,3.38786072,203.17,203.14,10.68167]
[1757089718702,4.53786072,203.17,203.14,10.68167]
[1757089719004,3.38786072,203.17,203.14,10.68167]
[1757089719605,3.38786072,203.17,203.14,2.57167]
[1757089719805,3.38786072,203.17,203.15,8.11]
[1757089721307,3.38786072,203.17,203.14,2.57167]
[1757089721308,1.15,203.16,203.14,2.57167]
[1757089722305,4.53786072,203.16,203.14,2.57167]
[1757089722510,4.92,203.18,203.15,8.11]
[1757089722705,0.03201753,203.19,203.15,8.11]
[1757089722903,0.03201753,203.19,203.14,2.57167]
[1757089723107,0.03201753,203.19,203.15,8.11]
[1757089723306,0.03201753,203.19,203.14,2.57167]
[1757089724608,0.03201753,203.19,203.15,8.11]
[1757089725008,0.03201753,203.19,203.14,2.57167]
[1757089725712,0.03201753,203.19,203.15,8.11]
[1757089726007,0.03201753,203.19,203.14,2.57167]
[1757089726610,0.03201753,203.19,203.15,8.11]
[1757089726914,0.03201753,203.19,203.14,2.57167]
[1757089727508,0.03201753,203.19,203.15,8.11]
[1757089727712,0.03201753,203.19,203.14,2.57167]
[1757089728112,0.03201753,203.19,203.15,8.13]
[1757089728415,0.03201753,203.19,203.14,2.57167]
[1757089728614,0.03201753,203.19,203.15,8.13]
[1757089729613,0.03201753,203.19,203.14,2.57167]
[1757089730007,0.03201753,203.19,203.15,8.13]
[1757089730514,0.03201753,203.19,203.14,2.57167]
[1757089730715,0.03201753,203.19,203.15,8.13]
[1757089730915,0.03201753,203.19,203.14,2.57167]
[1757089731316,0.03201753,203.19,203.15,8.13]
[1757089731618,0.03201753,203.19,203.14,2.57167]
[1757089732016,0.03201753,203.19,203.15,8.13]
[1757089732313,0.03201753,203.19,203.14,2.57167]
[1757089732520,0.03201753,203.19,203.15,8.13]
[1757089732721,0.03201753,203.19,203.14,2.57167]
[1757089732923,0.03201753,203.19,203.15,8.13]
[1757089733322,0.03201753,203.19,203.14,2.57167]
[1757089733518,0.03201753,203.19,203.15,8.13]
[1757089733719,0.03201753,203.19,203.14,2.57167]
[1757089734119,0.03201753,203.19,203.14,10.70167]
[1757089734323,1.17,203.16,203.14,2.57167]
[1757089735023,3.38786072,203.17,203.14,2.57167]
[1757089735329,1.17,203.16,203.14,2.57167]
[1757089735518,3.38786072,203.17,203.14,2.57167]
[1757089736014,1.17,203.16,203.14,2.57167]
[1757089736527,3.38786072,203.17,203.14,2.57167]
[1757089737020,3.38786072,203.15,203.14,2.57167]
[1757089737423,2.17300285,203.15,203.14,2.57167]
[1757089740419,5.46141246,203.18,203.14,10.70167]
[1757089740625,2.17300285,203.15,203.14,10.70167]
[1757089742223,2.17300285,203.17,203.15,8.13]
[1757089743019,2.17300285,203.17,203.14,2.57167]
[1757089743222,2.17300285,203.17,203.15,8.13]
[1757089743532,2.17300285,203.17,203.14,2.57167]
[1757089744128,2.17300285,203.17,203.15,8.13]
[1757089744324,2.17300285,203.17,203.14,2.57167]
[1757089744531,2.17300285,203.17,203.15,8.13]
[1757089746127,2.17300285,203.17,203.14,2.57167]
[1757089746324,0.03201753,203.19,203.14,2.57167]
[1757089746531,0.03201753,203.19,203.15,8.13]
[1757089746733,0.03201753,203.19,203.17,8.13]
[1757089746931,0.03201753,203.19,203.16,2.17300285]
[1757089747530,0.03201753,203.19,203.17,8.13]
[1757089748933,0.03201753,203.19,203.15,8.13]
[1757089750837,0.03201753,203.19,203.14,4.74467285]
[1757089751040,0.03201753,203.19,203.15,8.13]
[1757089751232,0.03201753,203.19,203.14,4.74467285]
[1757089751730,0.03201753,203.19,203.16,2.17300285]
[1757089752433,0.03201753,203.19,203.17,8.13]
[1757089752836,0.03201753,203.19,203.16,2.17300285]
[1757089753139,0.03201753,203.19,203.17,8.13]
[1757089753736,0.03201753,203.19,203.16,2.17300285]
[1757089753933,0.03201753,203.19,203.17,8.13]
[1757089754436,0.03201753,203.19,203.14,4.74467285]
[1757089754640,7.12502038,203.19,203.15,8.13]
[1757089755036,2.17300285,203.17,203.14,2.57167]
[1757089755534,3.34300285,203.17,203.14,2.57167]
[1757089756242,2.17300285,203.15,203.14,2.57167]
[1757089761237,2.17300285,203.16,203.15,7.86]
[1757089761836,2.17300285,203.16,203.14,2.57167]
[1757089762339,3.34300285,203.16,203.14,2.57167]
[1757089762535,1.17,203.15,203.14,2.57167]
[1757089763635,2.17300285,203.16,203.14,2.57167]
[1757089763940,3.34300285,203.16,203.14,2.57167]
[1757089764940,8.80441531,203.16,203.14,2.57167]
[1757089765140,1.18,203.15,203.14,2.57167]
[1757089765839,5.46141246,203.16,203.14,2.57167]
[1757089766038,2.17300285,203.15,203.14,2.57167]
[1757089768037,5.46141246,203.16,203.14,10.43167]
[1757089768238,2.17300285,203.15,203.14,10.43167]
[1757089771039,2.17300285,203.15,203.14,2.57167]
[1757089771242,3.35300285,203.15,203.14,2.57167]
[1757089772347,2.17300285,203.15,203.14,2.57167]
[1757089773048,3.35300285,203.15,203.14,2.57167]
[1757089773445,1.18,203.14,203.06,7.86]
[1757089773650,2.17300285,203.09,203.05,7.86]
[1757089774746,2.20829161,203.09,203.05,7.86]
[1757089775249,2.20829161,203.09,203.03,7.86]
[1757089775648,2.17300285,203.09,203.03,7.86]
[1757089775850,0.03631518,203.08,203.03,7.86]
[1757089778352,0.03631518,203.08,202.99,7.86]
[1757089778652,0.03631518,203.08,203.04,7.86]
[1757089779047,0.03631518,203.08,203.02,2.17300285]
[1757089779851,0.03631518,203.08,203.03,7.86]
[1757089780053,0.03631518,203.08,203.02,2.17300285]
[1757089780243,2.17300285,203.07,203.01,7.86]
[1757089780446,2.20931803,203.08,203.01,7.86]
[1757089780646,2.17300285,203.08,203.01,7.86]
[1757089780849,0.0377658,203.07,203.01,7.86]
[1757089781253,0.0377658,203.07,203.03,7.86]
[1757089781649,0.0377658,203.07,203.02,2.17300285]
[1757089781852,0.0377658,203.07,203.03,7.86]
[1757089782854,0.0377658,203.07,203.02,2.17300285]
[1757089783054,0.0377658,203.07,202.98,7.86]
[1757089783352,0.0377658,203.07,203.02,7.86]
[1757089784354,0.0377658,203.07,203.01,2.17300285]
[1757089784757,0.0377658,203.07,203.02,7.86]
[1757089785053,0.0377658,203.07,203.01,2.17300285]
[1757089786156,2.17300285,203.06,203.0,2.17300285]
[1757089786356,2.17300285,203.06,202.99,7.86]
[1757089786856,0.03271513,203.05,202.99,7.86]
[1757089787854,0.03271513,203.05,203.0,2.17300285]
[1757089788053,0.03271513,203.05,203.01,7.86]
[1757089788252,0.03271513,203.05,203.0,2.17300285]
[1757089788457,0.03271513,203.05,203.01,7.86]
[1757089788653,0.03271513,203.05,203.0,2.17300285]
[1757089788851,0.03271513,203.05,203.01,7.86]
[1757089789154,0.03271513,203.05,202.94,370.08]
[1757089789155,2.17300285,203.1,203.04,7.86]
[1757089790257,2.17300285,203.08,203.02,7.86]
[1757089790451,2.17300285,203.08,203.05,7.89239284]
[1757089790656,2.17300285,203.08,203.06,7.86]
[1757089793049,0.03513835,203.09,203.05,0.03239284]
[1757089793358,0.03513835,203.09,203.05,2.20539569]
[1757089793555,0.03513835,203.09,203.06,7.86]
[1757089793759,0.03513835,203.09,203.05,2.20539569]
[1757089794955,2.2081412,203.09,203.06,7.86]
[1757089795355,2.2081412,203.09,203.05,0.03239284]
[1757089795956,0.03513835,203.09,203.05,0.03239284]
[1757089796661,0.03513835,203.09,203.06,7.86]
[1757089797760,0.03513835,203.09,203.05,0.03239284]
[1757089798358,0.03513835,203.09,203.06,7.86]
[1757089798756,0.03513835,203.09,203.05,0.03239284]
[1757089798951,0.03513835,203.09,203.06,7.86]
[1757089799757,0.03513835,203.09,203.05,0.03239284]
[1757089800360,5.46141246,203.16,203.08,7.86]
[1757089800565,5.46141246,203.19,203.13,7.86]
[1757089800757,11.63141246,203.22,203.13,7.86]
[1757089800957,6.17,203.22,203.13,7.86]
[1757089801262,11.63141246,203.22,203.13,7.86]
[1757089801463,4.92,203.21,203.15,0.03674328]
[1757089802864,4.92,203.19,203.15,0.03674328]
[1757089803065,6.17,203.16,203.15,0.03674328]
[1757089803365,11.09,203.16,203.15,0.03674328]
[1757089805262,4.92,203.17,203.15,0.03674328]
[1757089805466,6.17,203.17,203.15,0.03674328]
[1757089805873,6.17,203.16,203.15,0.03674328]
[1757089806463,6.17,203.15,202.98,7.86]
[1757089806668,4.92,203.1,203.0,7.86]
[1757089807563,4.92,203.13,203.03,7.86]
[1757089807764,0.03149053,203.07,203.03,7.86]
[1757089808470,0.03149053,203.07,203.06,7.86]
[1757089808968,5.46141246,203.15,203.06,7.86]
[1757089809169,5.46141246,203.16,203.06,7.86]
[1757089809366,10.38141246,203.16,203.09,7.86]
[1757089809770,4.92,203.16,203.09,7.86]
[1757089809962,10.38141246,203.16,203.09,7.86]
[1757089810164,16.58141246,203.16,203.09,7.86]
[1757089810564,16.58141246,203.16,203.1,0.03318999]
[1757089810969,11.12,203.16,203.1,0.03318999]
[1757089813270,19.97801359,203.16,203.1,0.03318999]
[1757089813971,10.38141246,203.16,203.1,0.03318999]
[1757089814171,4.92,203.16,203.11,7.86]
[1757089814872,4.92,203.16,203.1,11.28979112]
[1757089815071,4.92,203.16,203.1,7.89318999]
[1757089815468,6.2,203.13,203.1,0.03318999]
[1757089815676,6.2,203.14,203.1,0.03318999]
[1757089815974,3.39660113,203.15,203.1,0.03318999]
[1757089816268,6.2,203.14,203.1,0.03318999]
[1757089816572,11.12,203.13,203.1,0.03318999]
[1757089817174,6.2,203.12,203.1,0.03318999]
[1757089817369,4.92,203.13,203.11,7.86]
[1757089817575,16.58141246,203.16,203.1,7.89318999]
[1757089817769,5.46141246,203.16,203.1,7.89318999]
[1757089817973,5.46141246,203.18,203.12,7.86]
[1757089818570,10.38141246,203.19,203.12,7.86]
[1757089818972,5.46141246,203.19,203.12,7.86]
[1757089819270,5.46141246,203.21,203.14,3.39660113]
[1757089819473,331.56784204,203.24,203.15,7.73]
[1757089819474,5.46141246,203.22,203.15,7.73]
[1757089819671,10.38141246,203.22,203.15,7.73]
[1757089819869,10.38141246,203.22,203.16,0.0345292]
[1757089820673,6.19,203.19,203.16,0.0345292]
[1757089820884,11.65141246,203.17,203.06,7.73]
[1757089821176,3.39660113,203.11,202.99,11.12660113]
[1757089821477,3.39660113,203.11,203.0,7.73]
[1757089821678,16.57141246,203.13,203.03,7.73]
[1757089821977,11.11,203.13,203.03,7.73]
[1757089822172,0.03435707,203.1,203.03,7.73]
[1757089822974,4.95435707,203.1,203.03,7.73]
[1757089823770,0.03435707,203.1,203.03,7.73]
[1757089825276,0.03435707,203.1,203.05,7.73]
[1757089826181,0.03435707,203.1,203.07,7.73]
[1757089826374,0.03435707,203.1,203.04,8.83091477]
[1757089827377,0.03435707,203.1,203.05,7.73]
[1757089828083,0.03435707,203.1,203.04,8.83091477]
[1757089828379,0.03435707,203.1,203.05,7.73]
[1757089829279,0.03435707,203.1,203.04,8.83091477]
[1757089829480,0.03435707,203.1,203.05,7.73]
[1757089830981,0.03435707,203.1,203.08,7.73]
[1757089831178,0.03435707,203.1,203.07,4.4315]
[1757089831484,0.03435707,203.1,203.08,7.73]
[1757089831879,0.03435707,203.1,203.07,4.4315]
[1757089832084,0.03435707,203.1,203.08,7.73]
[1757089832282,6.24,203.22,203.1,7.73]
[1757089832487,5.46141246,203.26,203.14,7.73]
[1757089832676,5.46141246,203.26,203.17,8.83091477]
[1757089832881,6.24,203.28,203.17,8.83091477]
[1757089832882,11.70141246,203.28,203.18,12.159]
[1757089833081,5.46141246,203.3,203.19,7.73]
[1757089833281,5.46141246,203.32,203.2,7.73]
[1757089833485,11.70141246,203.33,203.23,7.73]
[1757089834082,6.24,203.33,203.23,7.73]
[1757089835288,0.03561584,203.3,203.24,7.73]
[1757089835585,0.03561584,203.3,203.25,7.73]
[1757089835787,0.03561584,203.3,203.25,0.0365861]
[1757089836288,0.03561584,203.3,203.26,7.73]
[1757089837187,0.03561584,203.3,203.25,0.0365861]
[1757089837788,0.03561584,203.3,203.26,7.73]
[1757089837979,0.03561584,203.3,203.25,0.0365861]
[1757089838386,0.03561584,203.3,203.26,7.73]
[1757089838586,0.03561584,203.3,203.25,0.0365861]
[1757089839188,0.03561584,203.3,203.26,7.73]
[1757089839783,0.03561584,203.3,203.25,0.0365861]
[1757089840184,0.03561584,203.3,203.26,7.73]
[1757089840386,0.03561584,203.3,203.25,0.0365861]
[1757089840688,0.03561584,203.3,203.25,122.0965861]
[1757089841289,0.03561584,203.3,203.26,7.73]
[1757089841488,0.03561584,203.3,203.25,122.0965861]
[1757089841988,0.03561584,203.3,203.26,7.73]
[1757089842392,0.03561584,203.3,203.25,122.0765861]
[1757089842592,0.03561584,203.3,203.26,7.73]
[1757089842791,0.03561584,203.3,203.25,122.0765861]
[1757089842985,0.03561584,203.3,203.26,7.73]
[1757089843189,0.03561584,203.3,203.25,122.0765861]
[1757089843390,0.03561584,203.3,203.26,7.73]
[1757089843590,0.03561584,203.3,203.25,122.0765861]
[1757089843988,0.03561584,203.3,203.26,7.73]
[1757089844292,0.03561584,203.3,203.25,122.0765861]
[1757089844696,0.03561584,203.3,203.26,7.73]
[1757089844892,0.03561584,203.3,203.25,122.0765861]
[1757089845093,0.03561584,203.3,203.26,7.73]
[1757089845592,0.03561584,203.3,203.27,7.73]
[1757089845798,0.03561584,203.3,203.27,16.56091477]
[1757089845998,0.03561584,203.3,203.28,7.73]
[1757089846596,0.03561584,203.3,203.27,8.83091477]
[1757089846890,0.03561584,203.3,203.29,7.73]
[1757089847298,6.24,203.4,203.29,8.23]
[1757089847497,6.24,203.4,203.29,7.73]
[1757089848194,6.24,203.4,203.3,4.4265]
[1757089848401,2.58764,203.41,203.32,7.92]
[1757089848597,2.58764,203.41,203.32,7.95269587]
[1757089848801,2.58764,203.41,203.33,4.4259]
[1757089848997,2.58764,203.41,203.34,122.0]
[1757089849396,2.58764,203.41,203.32,7.95269587]
[1757089849603,2.58764,203.41,203.33,92.48]
[1757089849803,2.58764,203.41,203.34,122.0]
[1757089850506,6.25,203.4,203.32,7.95269587]
[1757089851809,4.92,203.39,203.32,7.95269587]
[1757089852008,6.25,203.4,203.32,0.03269587]
[1757089852714,4.92,203.4,203.32,0.03269587]
[1757089853013,6.25,203.36,203.32,0.03269587]
[1757089853211,2.58764,203.41,203.32,0.03269587]
[1757089853212,6.25,203.4,203.32,0.03269587]
[1757089853807,4.92,203.39,203.32,0.03269587]
[1757089854011,6.25,203.35,203.32,0.03269587]
[1757089854209,4.92,203.36,203.32,0.03269587]
[1757089854405,6.25,203.4,203.32,0.03269587]
[1757089854811,4.92,203.39,203.32,0.03269587]
[1757089855011,4.92,203.38,203.32,0.03269587]
[1757089856311,11.17,203.4,203.32,0.03269587]
[1757089861522,6.25,203.4,203.32,0.03269587]
[1757089861727,4.92,203.39,203.32,0.03269587]
[1757089862417,6.25,203.4,203.32,5.45323563]
[1757089862625,2.58764,203.41,203.35,5.42053976]
[1757089862810,2.58764,203.41,203.36,7.92]
[1757089863012,6.25,203.49,203.39,7.92]
[1757089863317,6.25,203.49,203.41,5.42053976]
[1757089863911,6.25,203.49,203.43,0.0348277]
[1757089864321,11.17,203.49,203.43,0.0348277]
[1757089866321,6.25,203.49,203.43,0.0348277]
[1757089867224,11.17,203.49,203.43,0.0348277]
[1757089869421,4.92,203.49,203.44,2.1654663]
[1757089869925,6.25,203.48,203.44,2.1654663]
[1757089870125,4.95500149,203.49,203.44,2.1654663]
[1757089870720,6.25,203.48,203.44,2.1654663]
[1757089870920,0.03500149,203.49,203.44,2.1654663]
[1757089871123,2.1654663,203.48,203.43,0.0348277]
[1757089871328,6.25,203.47,203.43,0.0348277]
[1757089871827,2.1654663,203.48,203.43,0.0348277]
[1757089872425,2.1654663,203.44,203.43,0.0348277]
[1757089872629,13.3354663,203.44,203.43,0.0348277]
[1757089872927,11.13,203.43,203.33,2.1654663]
[1757089873122,6.21,203.38,203.32,2.1654663]
[1757089873724,2.1654663,203.35,203.27,7.92]
[1757089873928,2.1654663,203.35,203.29,2.1654663]
[1757089874224,2.1654663,203.33,203.27,7.92]
[1757089874424,2.1654663,203.33,203.28,2.1654663]
[1757089874726,6.21,203.32,203.28,2.1654663]
[1757089875529,6.21,203.32,203.27,7.92]
[1757089875924,6.21,203.32,203.24,7.92]
[1757089876121,6.21,203.37,203.24,4.4278]
[1757089876323,6.21,203.37,203.25,13.34240327]
[1757089878027,5.42240327,203.38,203.25,7.92]
[1757089878232,6.22,203.37,203.25,7.92]
[1757089880331,4.92,203.34,203.25,7.92]
[1757089883733,6.22,203.35,203.26,7.61]
[1757089883923,4.92,203.36,203.27,7.61]
[1757089884127,6.22,203.38,203.27,7.61]
[1757089884425,0.0315581,203.35,203.29,0.03715157]
[1757089884629,0.0315581,203.35,203.3,7.61]
[1757089884829,0.0315581,203.35,203.29,5.45955484]
[1757089885030,0.0315581,203.35,203.3,7.61]
[1757089885233,0.0315581,203.35,203.29,5.45955484]
[1757089885527,0.0315581,203.35,203.3,7.61]
[1757089885733,0.0315581,203.35,203.3,4.4266]
[1757089886130,0.0315581,203.35,203.31,7.61]
[1757089886334,0.0315581,203.35,203.3,4.4266]
[1757089887135,0.0315581,203.35,203.31,7.61]
[1757089887631,0.0315581,203.35,203.29,5.45955484]
[1757089888630,0.0315581,203.35,203.3,7.61]
[1757089888835,0.0315581,203.35,203.29,5.45955484]
[1757089889331,0.0315581,203.35,203.3,7.61]
[1757089889733,0.0315581,203.35,203.29,5.45955484]
[1757089890037,0.0315581,203.35,203.3,7.61]
[1757089890235,0.0315581,203.35,203.29,5.45955484]
[1757089890438,0.0315581,203.35,203.3,7.61]
[1757089890635,6.22,203.43,203.33,5.42240327]
[1757089890836,6.22,203.47,203.37,7.61]
[1757089891238,6.22,203.47,203.37,12.0349]
[1757089891439,6.22,203.5,203.4,7.61]
[1757089891842,6.22,203.5,203.41,7.61]
[1757089892043,6.22,203.5,203.43,0.03765285]
[1757089892934,11.14,203.5,203.43,0.03765285]
[1757089893137,6.22,203.5,203.43,0.03765285]
[1757089893936,6.22,203.5,203.44,7.61]
[1757089897448,316.82,203.54,203.44,7.61]
[1757089897449,6.22,203.54,203.45,5.42240327]
[1757089897643,6.22,203.54,203.48,13.03240327]
[1757089898047,6.22,203.54,203.5,7.61]
[1757089899650,6.22,203.58,203.49,0.03556405]
[1757089899952,11.14,203.58,203.49,7.61]
[1757089900247,11.14,203.58,203.51,0.03370722]
[1757089903145,16.56240327,203.58,203.51,0.03370722]
[1757089903351,4.92,203.57,203.51,0.03370722]
[1757089903550,4.92,203.55,203.51,0.03370722]
[1757089903851,6.22,203.57,203.51,0.03370722]
[1757089904452,4.92,203.55,203.51,0.03370722]
[1757089904853,6.22,203.54,203.51,0.03370722]
[1757089905054,4.92,203.55,203.51,0.03370722]
[1757089905248,6.22,203.54,203.51,0.03370722]
[1757089905448,4.92,203.55,203.51,0.03370722]
[1757089905649,4.92,203.57,203.51,0.03370722]
[1757089905851,4.92,203.55,203.51,0.03370722]
[1757089906554,6.22,203.54,203.51,0.03370722]
[1757089906951,4.92,203.56,203.51,0.03370722]
[1757089907146,51.22,203.58,203.51,0.03370722]
[1757089907147,6.22,203.55,203.51,7.64370722]
[1757089907358,4.92,203.6,203.51,0.03370722]
[1757089907560,6.22,203.59,203.51,0.03370722]
[1757089907759,11.14,203.59,203.51,0.03370722]
[1757089913658,11.11,203.57,203.54,2.16333609]
[1757089913855,8.35333609,203.6,203.54,9.99333609]
[1757089914057,4.92,203.61,203.55,2.16333609]
[1757089914258,11.11,203.61,203.55,2.19922176]
[1757089914861,11.11,203.61,203.55,0.03588567]
[1757089915062,6.19,203.6,203.56,2.16333609]
[1757089915460,4.92,203.61,203.56,2.16333609]
[1757089915661,6.19,203.6,203.56,2.16333609]
[1757089916061,4.92,203.61,203.56,2.16333609]
[1757089916365,6.19,203.62,203.56,2.16333609]
[1757089919164,8.35333609,203.62,203.56,2.16333609]
[1757089919564,4.92,203.61,203.55,0.03588567]
[1757089920462,4.92,203.6,203.55,0.03588567]
[1757089920668,11.11,203.58,203.55,0.03588567]
[1757089920871,4.92,203.58,203.55,0.03588567]
[1757089921172,6.19,203.6,203.55,0.03588567]
[1757089921468,6.19,203.58,203.55,0.03588567]
[1757089922469,3.37941952,203.64,203.55,7.86588567]
[1757089922470,4.917,203.61,203.55,7.86588567]
[1757089924873,4.917,203.63,203.55,12.28688567]
[1757089925068,4.917,203.65,203.55,7.86588567]
[1757089925575,4.917,203.65,203.58,7.83]
[1757089926069,6.19,203.66,203.58,7.83]
[1757089926266,5.46141246,203.74,203.54,68.7771]
[1757089926267,3.37941952,203.71,203.61,7.83]
[1757089926467,6.19,203.7,203.61,7.83]
[1757089926875,6.19,203.7,203.63,0.03250548]
[1757089927072,4.917,203.69,203.63,0.03250548]
[1757089927379,6.19,203.7,203.63,3.411925]